{"text_format":"1","workbook":"xlsx","n_sheets":3,"sheets":["Instructions","Nufarm Edge Rewards Calculator","Rebate Reference Table"],"not_rendered":{"charts":0,"images":2,"macros":1,"external_links":0,"defined_names":7,"comments":0,"pivot_tables":0},"unopened":[],"bounds":{"document_bytes":16777216,"sheet_cells":100000,"rows_first":2000,"rows_last":500,"rows_between":2000,"halvings":0,"cell_chars":16384,"cell_head_chars":4096},"cells_cut":0,"cells_raw":0,"read":"whole","date_system":"1900"}

{"sheet":"Instructions","index":0,"n_rows":17,"n_cols":2,"rows_kept":17,"cut":false,"hidden":false,"merged":[[1,0,1,1],[2,0,2,1],[0,0,0,1]]}
[]
["Nufarm Edge Rewards Calculator"]
[]
[null,"READ FIRST:   Our new calculator offers collapse-to-print functionality that you'll appreciate,\nbut you must save the file to your PC and select \"enable content\" to enable macros when prompted.\nIf you missed making this selection, close the file and open again."]
[]
[null,"Follow these steps below to calculate your EOP Rebate:"]
[]
[null,"1. Click on the \"Nufarm Edge Rewards Calculator\" tab below."]
[]
[null,"2. Select the \"EOP Period\" and \"Product Segment\", then enter values in \"Price/Unit\" (optional), \"Units\" (required) and \"Own App Rate\" (optional) fields in the table to calculate your Total Rebate."]
[]
[null,"3. Click the \"Hide/Show Blank Rows\" button to hide rows without entered values."]
[]
[null,"4. Print or save the page as a PDF: On Windows: Ctrl + [P] | On Mac: Command + [P]"]
[]
[null,"Help enable macros: "]
[null,"https://support.microsoft.com/en-us/office/vba/enable-or-disable-macros-in-microsoft-365-files"]

{"sheet":"Nufarm Edge Rewards Calculator","index":1,"n_rows":112,"n_cols":18,"rows_kept":112,"cut":false,"hidden":false,"merged":[[68,17,70,17],[34,17,35,17],[15,13,17,13],[18,13,21,13],[0,12,0,13],[4,12,5,17],[7,13,7,15],[30,17,32,17],[76,4,77,4],[92,17,94,17],[88,17,91,17],[92,4,94,4],[82,4,83,4],[85,4,86,4],[85,17,86,17],[82,17,83,17],[88,4,91,4],[47,4,50,4],[8,5,8,7],[72,17,74,17],[37,17,38,17],[60,4,61,4],[65,4,66,4],[60,17,61,17],[65,17,66,17],[47,17,50,17],[8,13,9,15],[40,17,41,17],[40,4,41,4],[15,4,17,4],[15,17,17,17],[18,4,21,4],[18,17,21,17],[129,4,129,6],[109,4,110,4],[109,17,110,17],[23,17,24,17],[23,4,24,4],[72,4,74,4],[78,17,80,17],[78,4,80,4],[26,4,27,4],[26,17,27,17],[68,4,70,4],[52,17,53,17],[56,17,57,17],[58,17,59,17],[54,17,55,17],[106,17,108,17],[106,4,108,4],[43,4,46,4],[43,17,46,17],[54,4,55,4],[56,4,57,4],[52,4,53,4],[58,4,59,4],[99,17,102,17],[95,17,98,17],[99,4,102,4],[103,4,105,4],[95,4,98,4],[103,17,105,17],[63,17,64,17],[76,17,77,17],[63,4,64,4],[0,7,0,9],[7,5,7,7],[9,5,9,7],[5,9,5,10],[5,4,5,7],[6,4,6,7],[6,9,6,10],[1,7,4,9],[2,4,2,5],[34,4,35,4],[30,4,32,4],[37,4,38,4],[10,13,10,15],[10,5,10,7],[12,5,12,7]]}
[null,null,null,null,null,null,null,"Purchase $3,000 of eligible Nufarm Edge Rewards qualifying products between September 1 and December 4, 2026 to earn valuable distributor credit rebates.",null,null,null,null,"IMPORTANT:\nSelect \"Enable Content\" to \nenable macros providing \nnew functionality."]
[null,null,null,null,null,null,null,"Enroll in the Nufarm Edge Rewards (NufarmRewards.com) program from September 1 to December 4, 2026, to be eligible. If previously registered, there's no need to sign up again.\n\nVerify your account and loyalty number by filling out the online registration form at NufarmRewards.com using the same email address you registered with. Account details will be sent via email.\n\n",null,null,null,null,"For product and application details, please visit:"]
[null,null,null,null,"Program Periods:\nEOP 1: Sep 1 - Oct 31, 2026 (Volume Bonus rebates available.)\nEOP 2: Nov 1 - Dec 4, 2026",null,null,null,null,null,null,null,"https://nufarm.com/usturf/"]
[null,null,null,null,"Select EOP Period:","EOP 1",null,null,null,null,null,null,"Turf EZ Solution Pairings"]
[null,null,null,null," Select Product Segment:","All Products",null,null,null,null,null,null,"Turf EZ Solution pairings are your best value combinations available Sep 1 – Dec 4, 2026. Purchase the product combinations at the minimum required quantities on a single invoice. Choose either Anuew EZ or Anuew, then select one pairing, or combine products – Tourney EZ and Traction."]
[]
[null,null,null,null,"Nufarm Edge Rewards Calculator (California)",null,null,null,null,"DRAFT ORDER"]
[null,null,null,null,"Customer:",null,null,null,null,"TOTAL COST",{"$f":"SUM($I$16:$I$112)","v":0},null,"PAIRINGS","PRODUCT 1",null,null,null,"PRODUCT 2"]
[null,null,null,null,"Name:",null,null,null,null,"TOTAL REBATE",{"$f":"SUM($K$16:$K$112)","v":0},null,1,"ANUEW EZ 2.5 gal\n8+ Units\nor\nANUEW 1.5 lb\n48+ Units",null,null,"+","TOURNEY EZ 1 gal\n4+ Units"]
[null,null,null,null,"Date:",null,null,null,null,"ESTIMATED NET TOTAL",{"$f":"IF(K8>K9,K8-K9,\"\")","v":""},null,2,null,null,null,"+","TRACTION 2.5 gal\n6+ Units"]
[null,null,null,null,"Sales Manager:",null,null,null,null,"AVERAGE SAVINGS",{"$f":"IF(K8>K9,K9/K8,\"\")","v":""},null,3,"TRACTION 2.5 gal\n2+ Units",null,null,"+","26/36 2.5 gal\n6+ Units"]
[]
[]
["Turf\nBrochure","Greenhouse\nNursery Brochure","Product","Rebate","PRODUCT","UNIT SIZE","PRICE/UNIT\n(optional)","UNITS\n(required)","TOTAL COST","REBATE / UNIT","SUBTOTAL REBATE",null,"EXAMPLE LOW RATE","EXAMPLE HIGH RATE","MEASURE","OWN APP RATE (optional)","YOUR TREATED ACRES\n(or gallons mix)","NO STATE REGISTRATION\n& (availability)"]
["Plant Growth Regulators","Plant Growth Regulators",null,"Plant Growth Regulators","Plant Growth Regulators"]
["Yes",null,"ANUEW","EOP 1 & 2","ANUEW","1.5 lb. pack",null,null,{"$f":"G16*H16","v":0},{"$f":"IF($F$4=\"EOP 1\", VLOOKUP(C16&F16&$F$4,'Rebate Reference Table'!$E$5:$J$128,3,FALSE), VLOOKUP(C16&F16&$F$4,'Rebate Reference Table'!$F$5:$J$128,5,FALSE))","v":8},{"$f":"H16*J16","v":0},null,2,"12 cool season\n\n16 warm season","oz / A",null,{"$f":"IFERROR(H16*24/P16,\"\")","v":""},"AK, PR"]
["Yes",null,"ANUEW","Volume",null,"1.5 lb. pack Volume 32+",null,null,{"$f":"G17*H17","v":0},{"$f":"IF($F$4=\"EOP 1\", VLOOKUP(C17&F17&$F$4,'Rebate Reference Table'!$E$5:$J$128,4,FALSE), VLOOKUP(C17&F17&$F$4,'Rebate Reference Table'!$F$5:$J$128,5,FALSE))","v":18},0,null,2,null,"oz / A",null,{"$f":"IFERROR(H17*24/P17,\"\")","v":""}]
["Yes",null,"ANUEW","Pairing",null,"1.5 lb. pack Pairing 1 & 2",null,null,0,{"$f":"IF($F$4=\"EOP 1\", VLOOKUP(C18&F18&$F$4,'Rebate Reference Table'!$E$5:$J$128,5,FALSE), VLOOKUP(C18&F18&$F$4,'Rebate Reference Table'!$F$5:$J$128,5,FALSE))","v":25},0,null,2,null,"oz / A",null,{"$f":"IFERROR(H18*24/P18,\"\")","v":""}]
["Yes",null,"ANUEW EZ","EOP 1 & 2","ANUEW EZ","64 fl oz. bottle",null,null,0,{"$f":"IF($F$4=\"EOP 1\", VLOOKUP(C19&F19&$F$4,'Rebate Reference Table'!$E$5:$J$128,3,FALSE), VLOOKUP(C19&F19&$F$4,'Rebate Reference Table'!$F$5:$J$128,5,FALSE))","v":10},0,null,2.2000000000000002,"27 cool season\n\n36 warm season"," fl.oz / A",null,{"$f":"IFERROR(H19*64/P19,\"\")","v":""},"AK, PR"]
["Yes",null,"ANUEW EZ","EOP 1 & 2",null,"2.5 gal. bottle",null,null,0,{"$f":"IF($F$4=\"EOP 1\", VLOOKUP(C20&F20&$F$4,'Rebate Reference Table'!$E$5:$J$128,3,FALSE), VLOOKUP(C20&F20&$F$4,'Rebate Reference Table'!$F$5:$J$128,5,FALSE))","v":48},0,null,2.2000000000000002,null," fl.oz / A",null,{"$f":"IFERROR(H20*320/P20,\"\")","v":""}]
["Yes",null,"ANUEW EZ","Volume",null,"2.5 gal. bottle Volume 6+",null,null,0,{"$f":"IF($F$4=\"EOP 1\", VLOOKUP(C21&F21&$F$4,'Rebate Reference Table'!$E$5:$J$128,4,FALSE), VLOOKUP(C21&F21&$F$4,'Rebate Reference Table'!$F$5:$J$128,5,FALSE))","v":125},0,null,2.2000000000000002,null," fl.oz / A",null,{"$f":"IFERROR(H21*320/P21,\"\")","v":""}]
["Yes",null,"ANUEW EZ","Pairing",null,"2.5 gal. bottle Pairing 1 & 2",null,null,0,{"$f":"IF($F$4=\"EOP 1\", VLOOKUP(C22&F22&$F$4,'Rebate Reference Table'!$E$5:$J$128,5,FALSE), VLOOKUP(C22&F22&$F$4,'Rebate Reference Table'!$F$5:$J$128,5,FALSE))","v":150},0,null,2.2000000000000002,null," fl.oz / A",null,{"$f":"IFERROR(H22*320/P22,\"\")","v":""}]
[null,"Yes","FASCINATION","EOP 1 & 2","FASCINATION","0.5 gal. bottle",null,null,0,{"$f":"IF($F$4=\"EOP 1\", VLOOKUP(C23&F23&$F$4,'Rebate Reference Table'!$E$5:$J$128,3,FALSE), VLOOKUP(C23&F23&$F$4,'Rebate Reference Table'!$F$5:$J$128,5,FALSE))","v":12},0,null,"consult label","consult label","N/A",null,null,"AK, PR"]
[null,"Yes","SUMAGIC","EOP 1 & 2","SUMAGIC","1 gal. bottle",null,null,0,{"$f":"IF($F$4=\"EOP 1\", VLOOKUP(C24&F24&$F$4,'Rebate Reference Table'!$E$5:$J$128,3,FALSE), VLOOKUP(C24&F24&$F$4,'Rebate Reference Table'!$F$5:$J$128,5,FALSE))","v":10},0,null,"consult label","consult label","N/A",null,null,"AK, DC"]
[null,"Yes","SUMAGIC","EOP 1 & 2",null,"15 gal. drum",null,null,{"$f":"G25*H25","v":0},{"$f":"IF($F$4=\"EOP 1\", VLOOKUP(C25&F25&$F$4,'Rebate Reference Table'!$E$5:$J$128,3,FALSE), VLOOKUP(C25&F25&$F$4,'Rebate Reference Table'!$F$5:$J$128,5,FALSE))","v":150},0,null,"consult label","consult label","N/A"]
["Fungicides","Fungicides",null,"Fungicides","Fungicides"]
["Yes","Yes","26/36","EOP 1 & 2","26/36","2.5 gal. bottle",null,null,0,{"$f":"IF($F$4=\"EOP 1\", VLOOKUP(C27&F27&$F$4,'Rebate Reference Table'!$E$5:$J$128,3,FALSE), VLOOKUP(C27&F27&$F$4,'Rebate Reference Table'!$F$5:$J$128,5,FALSE))","v":20},{"$f":"H27*J27","v":0},null,1,8,"fl.oz / 10002",null,{"$f":"IFERROR((H27*320)/(P27*43.56),\"\")","v":""},"AZ, PR"]
["Yes","Yes","26/36","Pairing",null,"2.5 gal. bottle Pairing 3",null,null,0,{"$f":"IF($F$4=\"EOP 1\", VLOOKUP(C28&F28&$F$4,'Rebate Reference Table'!$E$5:$J$128,5,FALSE), VLOOKUP(C28&F28&$F$4,'Rebate Reference Table'!$F$5:$J$128,5,FALSE))","v":30},0,null,1,8,"fl.oz / 10002",null,{"$f":"IFERROR((H28*320)/(P28*43.56),\"\")","v":""}]
["Yes",null,"3336 DG LITE","EOP 1 & 2","3336 DG LITE","30 lb. bag",null,null,0,{"$f":"IF($F$4=\"EOP 1\", VLOOKUP(C29&F29&$F$4,'Rebate Reference Table'!$E$5:$J$128,3,FALSE), VLOOKUP(C29&F29&$F$4,'Rebate Reference Table'!$F$5:$J$128,5,FALSE))","v":3},0,null,1.5,9,"lbs / 10002",null,{"$f":"IFERROR((H29*30)/(P29*43.56),\"\")","v":""},"AK, PR"]
[null,"Yes","3336 EG","EOP 1 & 2","3336 EG","5 lb. bottle",null,null,0,{"$f":"IF($F$4=\"EOP 1\", VLOOKUP(C30&F30&$F$4,'Rebate Reference Table'!$E$5:$J$128,3,FALSE), VLOOKUP(C30&F30&$F$4,'Rebate Reference Table'!$F$5:$J$128,5,FALSE))","v":10},0,null,2,6,"oz / 10002",null,{"$f":"IFERROR((H30*80)/(P30*43.56),\"\")","v":""},"AK, DC, ME, PR"]
["Yes","Yes","3336 F","EOP 1 & 2","3336 F","1 qt. bottle",null,null,0,{"$f":"IF($F$4=\"EOP 1\", VLOOKUP(C31&F31&$F$4,'Rebate Reference Table'!$E$5:$J$128,3,FALSE), VLOOKUP(C31&F31&$F$4,'Rebate Reference Table'!$F$5:$J$128,5,FALSE))","v":3},0,null,8,24,"fl.oz / 100 gal",null,{"$f":"IFERROR(H31*3200/P31,\"\")","v":""},"AK, DC"]
["Yes","Yes","3336 F","EOP 1 & 2",null,"2.5 gal. bottle",null,null,0,{"$f":"IF($F$4=\"EOP 1\", VLOOKUP(C32&F32&$F$4,'Rebate Reference Table'!$E$5:$J$128,3,FALSE), VLOOKUP(C32&F32&$F$4,'Rebate Reference Table'!$F$5:$J$128,5,FALSE))","v":30},0,null,8,24,"fl.oz / 100 gal",null,{"$f":"IFERROR(H32*32000/P32,\"\")","v":""}]
["Yes","Yes","3336 F","Volume",null,"2.5 gal. bottle Volume 4+",null,null,0,{"$f":"IF($F$4=\"EOP 1\", VLOOKUP(C33&F33&$F$4,'Rebate Reference Table'!$E$5:$J$128,4,FALSE), VLOOKUP(C33&F33&$F$4,'Rebate Reference Table'!$F$5:$J$128,5,FALSE))","v":60},0,null,8,24,"fl.oz / 100 gal",null,{"$f":"IFERROR(H33*32000/P33,\"\")","v":""}]
["Yes","Yes","ADORN","EOP 1 & 2","ADORN","1 qt. bottle",null,null,0,{"$f":"IF($F$4=\"EOP 1\", VLOOKUP(C34&F34&$F$4,'Rebate Reference Table'!$E$5:$J$128,3,FALSE), VLOOKUP(C34&F34&$F$4,'Rebate Reference Table'!$F$5:$J$128,5,FALSE))","v":15},0,null,1,4,"fl.oz / 100 gal",null,{"$f":"IFERROR(H34*3200/P34,\"\")","v":""},"HI"]
["Yes","Yes","AFFIRM WDG","EOP 1 & 2","AFFIRM WDG","2.4 lb. bag",null,null,0,{"$f":"IF($F$4=\"EOP 1\", VLOOKUP(C35&F35&$F$4,'Rebate Reference Table'!$E$5:$J$128,3,FALSE), VLOOKUP(C35&F35&$F$4,'Rebate Reference Table'!$F$5:$J$128,5,FALSE))","v":10},0,null,0.88149999999999995,1,"oz / 10002",null,{"$f":"IFERROR((H35*38.4)/(P35*43.56),\"\")","v":""},"PR"]
["Yes","Yes","AFFIRM WDG","Volume",null,"2.4 lb. bag Volume 6+",null,null,0,{"$f":"IF($F$4=\"EOP 1\", VLOOKUP(C36&F36&$F$4,'Rebate Reference Table'!$E$5:$J$128,4,FALSE), VLOOKUP(C36&F36&$F$4,'Rebate Reference Table'!$F$5:$J$128,5,FALSE))","v":25},0,null,0.88149999999999995,1,"oz / 10002",null,{"$f":"IFERROR((H36*38.4)/(P36*43.56),\"\")","v":""}]
[null,"Yes","CHAMPION++","EOP 1 & 2","CHAMPION++","10 lb. bag",null,null,0,{"$f":"IF($F$4=\"EOP 1\", VLOOKUP(C37&F37&$F$4,'Rebate Reference Table'!$E$5:$J$128,3,FALSE), VLOOKUP(C37&F37&$F$4,'Rebate Reference Table'!$F$5:$J$128,5,FALSE))","v":5},0,null,0.8,0.8,"lb / 100 gal",null,{"$f":"IFERROR(H37*1000/P37,\"\")","v":""}]
["Yes",null,"PINPOINT","EOP 1 & 2","PINPOINT","60 fl oz. bottle",null,null,0,{"$f":"IF($F$4=\"EOP 1\", VLOOKUP(C38&F38&$F$4,'Rebate Reference Table'!$E$5:$J$128,3,FALSE), VLOOKUP(C38&F38&$F$4,'Rebate Reference Table'!$F$5:$J$128,5,FALSE))","v":10},0,null,0.27500000000000002,0.31,"fl.oz / 10002",null,{"$f":"IFERROR((H38*60)/(P38*43.56),\"\")","v":""},"HI\nNot for sale, use or distribution in Nassau & Suffolk Counties (No application within 50 ft of water body connected to off-site surface water in NY)"]
["Yes",null,"PINPOINT","Volume",null,"60 fl oz. bottle Volume 8+",null,null,0,{"$f":"IF($F$4=\"EOP 1\", VLOOKUP(C39&F39&$F$4,'Rebate Reference Table'!$E$5:$J$128,4,FALSE), VLOOKUP(C39&F39&$F$4,'Rebate Reference Table'!$F$5:$J$128,5,FALSE))","v":30},0,null,0.27500000000000002,0.31,"fl.oz / 10002",null,{"$f":"IFERROR((H39*60)/(P39*43.56),\"\")","v":""}]
["Yes","Yes","SPECTRO 90 WDG","EOP 1 & 2","SPECTRO 90 WDG","5 lb. bag",null,null,0,{"$f":"IF($F$4=\"EOP 1\", VLOOKUP(C40&F40&$F$4,'Rebate Reference Table'!$E$5:$J$128,3,FALSE), VLOOKUP(C40&F40&$F$4,'Rebate Reference Table'!$F$5:$J$128,5,FALSE))","v":5},0,null,1,2,"lb / 100 gal",null,{"$f":"IFERROR(H40*500/P40,\"\")","v":""},"ME, PR"]
[null,"Yes","SPIRATO GHN","EOP 1 & 2","SPIRATO GHN","1 pt. bottle",null,null,0,{"$f":"IF($F$4=\"EOP 1\", VLOOKUP(C41&F41&$F$4,'Rebate Reference Table'!$E$5:$J$128,3,FALSE), VLOOKUP(C41&F41&$F$4,'Rebate Reference Table'!$F$5:$J$128,5,FALSE))","v":20},0,null,1,2,"fl.oz / 100 gal",null,{"$f":"IFERROR(H41*1600/P41,\"\")","v":""},"ME, PR"]
[null,"Yes","SPIRATO GHN","Volume",null,"1 pt. bottle Volume 8+",null,null,0,{"$f":"IF($F$4=\"EOP 1\", VLOOKUP(C42&F42&$F$4,'Rebate Reference Table'!$E$5:$J$128,4,FALSE), VLOOKUP(C42&F42&$F$4,'Rebate Reference Table'!$F$5:$J$128,5,FALSE))","v":50},0,null,1,2,"fl.oz / 100 gal",null,{"$f":"IFERROR(H42*1600/P42,\"\")","v":""}]
["Yes","Yes","TORQUE","EOP 1 & 2","TORQUE","1 gal. bottle",null,null,0,{"$f":"IF($F$4=\"EOP 1\", VLOOKUP(C43&F43&$F$4,'Rebate Reference Table'!$E$5:$J$128,3,FALSE), VLOOKUP(C43&F43&$F$4,'Rebate Reference Table'!$F$5:$J$128,5,FALSE))","v":8},0,null,0.6,1.1000000000000001,"fl.oz / 10002",null,{"$f":"IFERROR((H43*128)/(P43*43.56),\"\")","v":""},"ME, PR"]
["Yes",null,"TOURNEY EZ","EOP 1 & 2","TOURNEY EZ\n(Not for use on ornamental plants in California)","1 pt. bottle",null,null,0,{"$f":"IF($F$4=\"EOP 1\", VLOOKUP(C44&F44&$F$4,'Rebate Reference Table'!$E$5:$J$128,3,FALSE), VLOOKUP(C44&F44&$F$4,'Rebate Reference Table'!$F$5:$J$128,5,FALSE))","v":12},0,null,0.18,0.37,"fl.oz / 10002",null,{"$f":"IFERROR((H44*128)/(P44*43.56),\"\")","v":""},"CA not for ornamental use"]
["Yes",null,"TOURNEY EZ","EOP 1 & 2",null,"1 gal. bottle",null,null,0,{"$f":"IF($F$4=\"EOP 1\", VLOOKUP(C45&F45&$F$4,'Rebate Reference Table'!$E$5:$J$128,3,FALSE), VLOOKUP(C45&F45&$F$4,'Rebate Reference Table'!$F$5:$J$128,5,FALSE))","v":75},0,null,0.18,0.37,"fl.oz / 10002",null,{"$f":"IFERROR((H45*128)/(P45*43.56),\"\")","v":""}]
["Yes",null,"TOURNEY EZ","Volume",null,"1 gal. bottle Volume 4+",null,null,0,{"$f":"IF($F$4=\"EOP 1\", VLOOKUP(C46&F46&$F$4,'Rebate Reference Table'!$E$5:$J$128,4,FALSE), VLOOKUP(C46&F46&$F$4,'Rebate Reference Table'!$F$5:$J$128,5,FALSE))","v":110},0,null,0.18,0.37,"fl.oz / 10002",null,{"$f":"IFERROR((H46*128)/(P46*43.56),\"\")","v":""}]
["Yes",null,"TOURNEY EZ","Pairing",null,"1 gal. bottle Pairing 1",null,null,0,{"$f":"IF($F$4=\"EOP 1\", VLOOKUP(C47&F47&$F$4,'Rebate Reference Table'!$E$5:$J$128,5,FALSE), VLOOKUP(C47&F47&$F$4,'Rebate Reference Table'!$F$5:$J$128,5,FALSE))","v":140},0,null,0.18,0.37,"fl.oz / 10002",null,{"$f":"IFERROR((H47*128)/(P47*43.56),\"\")","v":""}]
["Yes",null,"TRACTION","EOP 1 & 2","TRACTION","2.5 gal. bottle",null,null,0,{"$f":"IF($F$4=\"EOP 1\", VLOOKUP(C48&F48&$F$4,'Rebate Reference Table'!$E$5:$J$128,3,FALSE), VLOOKUP(C48&F48&$F$4,'Rebate Reference Table'!$F$5:$J$128,5,FALSE))","v":20},0,null,1.3,1.3,"fl.oz / 10002",null,{"$f":"IFERROR((H48*320)/(P48*43.56),\"\")","v":""},"PR"]
["Yes",null,"TRACTION","Volume",null,"2.5 gal. bottle Volume 6+",null,null,0,{"$f":"IF($F$4=\"EOP 1\", VLOOKUP(C49&F49&$F$4,'Rebate Reference Table'!$E$5:$J$128,4,FALSE), VLOOKUP(C49&F49&$F$4,'Rebate Reference Table'!$F$5:$J$128,5,FALSE))","v":55},0,null,1.3,1.3,"fl.oz / 10002",null,{"$f":"IFERROR((H49*320)/(P49*43.56),\"\")","v":""}]
["Yes",null,"TRACTION","Pairing",null,"2.5 gal. bottle Pairing 2",null,null,0,{"$f":"IF($F$4=\"EOP 1\", VLOOKUP(C50&F50&$F$4,'Rebate Reference Table'!$E$5:$J$128,5,FALSE), VLOOKUP(C50&F50&$F$4,'Rebate Reference Table'!$F$5:$J$128,5,FALSE))","v":75},0,null,1.3,1.3,"fl.oz / 10002",null,{"$f":"IFERROR((H50*320)/(P50*43.56),\"\")","v":""}]
["Yes",null,"TRACTION","Pairing",null,"2.5 gal. bottle Pairing 3",null,null,0,{"$f":"IF($F$4=\"EOP 1\", VLOOKUP(C51&F51&$F$4,'Rebate Reference Table'!$E$5:$J$128,5,FALSE), VLOOKUP(C51&F51&$F$4,'Rebate Reference Table'!$F$5:$J$128,5,FALSE))","v":75},0,null,1.3,1.3,"fl.oz / 10002",null,{"$f":"IFERROR((H51*320)/(P51*43.56),\"\")","v":""}]
["Insecticides","Insecticides",null,"Insecticides","Insecticides"]
["Yes",null,"ALOFT LC G","EOP 1 & 2","ALOFT LC G","30 lb. bag",null,null,0,{"$f":"IF($F$4=\"EOP 1\", VLOOKUP(C53&F53&$F$4,'Rebate Reference Table'!$E$5:$J$128,3,FALSE), VLOOKUP(C53&F53&$F$4,'Rebate Reference Table'!$F$5:$J$128,5,FALSE))","v":3},{"$f":"H53*J53","v":0},null,80,160,"lb / A",null,{"$f":"IFERROR(H53*30/P53,\"\")","v":""},"NY"]
["Yes",null,"ALOFT LC G","Volume",null,"30 lb. bag Volume 50+",null,null,0,{"$f":"IF($F$4=\"EOP 1\", VLOOKUP(C54&F54&$F$4,'Rebate Reference Table'!$E$5:$J$128,4,FALSE), VLOOKUP(C54&F54&$F$4,'Rebate Reference Table'!$F$5:$J$128,5,FALSE))","v":6},0,null,80,160,"lb / A",null,{"$f":"IFERROR(H54*30/P54,\"\")","v":""}]
["Yes",null,"ALOFT GC SC","EOP 1 & 2","ALOFT GC SC","64 fl oz. bottle",null,null,0,{"$f":"IF($F$4=\"EOP 1\", VLOOKUP(C55&F55&$F$4,'Rebate Reference Table'!$E$5:$J$128,3,FALSE), VLOOKUP(C55&F55&$F$4,'Rebate Reference Table'!$F$5:$J$128,5,FALSE))","v":65},0,null,0.27,0.54,"fl.oz / 10002",null,{"$f":"IFERROR((H55*64)/(P55*43.56),\"\")","v":""},"NY, PR, Elsewhere Restricted Use Pesticide"]
["Yes",null,"ALOFT GC SC","Volume",null,"64 fl oz. bottle Volume 8+",null,null,0,{"$f":"IF($F$4=\"EOP 1\", VLOOKUP(C56&F56&$F$4,'Rebate Reference Table'!$E$5:$J$128,4,FALSE), VLOOKUP(C56&F56&$F$4,'Rebate Reference Table'!$F$5:$J$128,5,FALSE))","v":130},0,null,0.27,0.54,"fl.oz / 10002",null,{"$f":"IFERROR((H56*64)/(P56*43.56),\"\")","v":""}]
["Yes",null,"ALOFT LC SC","EOP 1 & 2","ALOFT LC SC","64 fl oz. bottle",null,null,0,{"$f":"IF($F$4=\"EOP 1\", VLOOKUP(C57&F57&$F$4,'Rebate Reference Table'!$E$5:$J$128,3,FALSE), VLOOKUP(C57&F57&$F$4,'Rebate Reference Table'!$F$5:$J$128,5,FALSE))","v":65},0,null,0.27,0.54,"fl.oz / 10002",null,{"$f":"IFERROR((H57*64)/(P57*43.56),\"\")","v":""},"NY"]
["Yes",null,"ALOFT LC SC","Volume",null,"64 fl oz. bottle Volume 8+",null,null,0,{"$f":"IF($F$4=\"EOP 1\", VLOOKUP(C58&F58&$F$4,'Rebate Reference Table'!$E$5:$J$128,4,FALSE), VLOOKUP(C58&F58&$F$4,'Rebate Reference Table'!$F$5:$J$128,5,FALSE))","v":130},0,null,0.27,0.54,"fl.oz / 10002",null,{"$f":"IFERROR((H58*64)/(P58*43.56),\"\")","v":""}]
["Yes",null,"ARENA 0.25 G","EOP 1 & 2","ARENA 0.25 G","30 lb. bag",null,null,0,{"$f":"IF($F$4=\"EOP 1\", VLOOKUP(C59&F59&$F$4,'Rebate Reference Table'!$E$5:$J$128,3,FALSE), VLOOKUP(C59&F59&$F$4,'Rebate Reference Table'!$F$5:$J$128,5,FALSE))","v":3},0,null,80,160,"lb / A",null,{"$f":"IFERROR(H59*30/P59,\"\")","v":""},"NY"]
["Yes",null,"ARENA 0.25 G","Volume",null,"30 lb. bag Volume 50+",null,null,0,{"$f":"IF($F$4=\"EOP 1\", VLOOKUP(C60&F60&$F$4,'Rebate Reference Table'!$E$5:$J$128,4,FALSE), VLOOKUP(C60&F60&$F$4,'Rebate Reference Table'!$F$5:$J$128,5,FALSE))","v":6},0,null,80,160,"lb / A",null,{"$f":"IFERROR(H60*30/P60,\"\")","v":""}]
["Yes",null,"ARENA 50 WDG","EOP 1 & 2","ARENA 50 WDG","40 wt oz. bottle",null,null,0,{"$f":"IF($F$4=\"EOP 1\", VLOOKUP(C61&F61&$F$4,'Rebate Reference Table'!$E$5:$J$128,3,FALSE), VLOOKUP(C61&F61&$F$4,'Rebate Reference Table'!$F$5:$J$128,5,FALSE))","v":50},0,null,6.4,12.8,"oz / A",null,{"$f":"IFERROR(H61*40/P61,\"\")","v":""},"NY"]
["Yes",null,"ARENA 50 WDG","Volume",null,"40 wt oz. bottle Volume 8+",null,null,0,{"$f":"IF($F$4=\"EOP 1\", VLOOKUP(C62&F62&$F$4,'Rebate Reference Table'!$E$5:$J$128,4,FALSE), VLOOKUP(C62&F62&$F$4,'Rebate Reference Table'!$F$5:$J$128,5,FALSE))","v":140},0,null,6.4,12.8,"oz / A",null,{"$f":"IFERROR(H62*40/P62,\"\")","v":""}]
["Yes","Yes","DIPEL PRO DF","EOP 1 & 2","DIPEL PRO DF","1 lb. bag",null,null,0,{"$f":"IF($F$4=\"EOP 1\", VLOOKUP(C63&F63&$F$4,'Rebate Reference Table'!$E$5:$J$128,3,FALSE), VLOOKUP(C63&F63&$F$4,'Rebate Reference Table'!$F$5:$J$128,5,FALSE))","v":1},0,null,0.5,2,"lb / A",null,{"$f":"IFERROR(H63/P63,\"\")","v":""},"AK, PR"]
["Yes","Yes","DISTANCE IGR","EOP 1 & 2","DISTANCE IGR","1 qt. bottle",null,null,0,{"$f":"IF($F$4=\"EOP 1\", VLOOKUP(C64&F64&$F$4,'Rebate Reference Table'!$E$5:$J$128,3,FALSE), VLOOKUP(C64&F64&$F$4,'Rebate Reference Table'!$F$5:$J$128,5,FALSE))","v":38},0,null,6,12,"fl.oz / 100 gal",null,{"$f":"IFERROR(H64*3200/P64,\"\")","v":""}]
["Yes","Yes","DISTANCE IGR","Volume",null,"1 qt. bottle Volume 4+",null,null,0,{"$f":"IF($F$4=\"EOP 1\", VLOOKUP(C65&F65&$F$4,'Rebate Reference Table'!$E$5:$J$128,4,FALSE), VLOOKUP(C65&F65&$F$4,'Rebate Reference Table'!$F$5:$J$128,5,FALSE))","v":45},0,null,6,12,"fl.oz / 100 gal",null,{"$f":"IFERROR(H65*3200/P65,\"\")","v":""}]
[null,"Yes","ENGULF GHN","EOP 1 & 2","ENGULF GHN","1 pt. bottle",null,null,0,{"$f":"IF($F$4=\"EOP 1\", VLOOKUP(C66&F66&$F$4,'Rebate Reference Table'!$E$5:$J$128,3,FALSE), VLOOKUP(C66&F66&$F$4,'Rebate Reference Table'!$F$5:$J$128,5,FALSE))","v":20},0,null,2,4,"fl.oz / 100 gal",null,{"$f":"IFERROR(H66*1600/P66,\"\")","v":""},"AK, ME, PR"]
[null,"Yes","ENGULF GHN","Volume",null,"1 pt. bottle Volume 8+",null,null,0,{"$f":"IF($F$4=\"EOP 1\", VLOOKUP(C67&F67&$F$4,'Rebate Reference Table'!$E$5:$J$128,4,FALSE), VLOOKUP(C67&F67&$F$4,'Rebate Reference Table'!$F$5:$J$128,5,FALSE))","v":30},0,null,2,4,"fl.oz / 100 gal",null,{"$f":"IFERROR(H67*1600/P67,\"\")","v":""}]
[null,"Yes","GNATROL WDG","EOP 1 & 2","GNATROL WDG","16 lb. pail",null,null,0,{"$f":"IF($F$4=\"EOP 1\", VLOOKUP(C68&F68&$F$4,'Rebate Reference Table'!$E$5:$J$128,3,FALSE), VLOOKUP(C68&F68&$F$4,'Rebate Reference Table'!$F$5:$J$128,5,FALSE))","v":16},0,null,3.2,26,"oz / 100 gal",null,{"$f":"IFERROR(H68*25600/P68,\"\")","v":""}]
["Yes","Yes","MINX 2","EOP 1 & 2","MINX 2","1 qt. bottle",null,null,0,{"$f":"IF($F$4=\"EOP 1\", VLOOKUP(C69&F69&$F$4,'Rebate Reference Table'!$E$5:$J$128,3,FALSE), VLOOKUP(C69&F69&$F$4,'Rebate Reference Table'!$F$5:$J$128,5,FALSE))","v":5},0,null,4,8,"fl.oz / 100 gal",null,{"$f":"IFERROR(H69*3200/P69,\"\")","v":""},"ME, PR, WY"]
["Yes","Yes","MINX 2","EOP 1 & 2",null,"1 gal. bottle",null,null,0,{"$f":"IF($F$4=\"EOP 1\", VLOOKUP(C70&F70&$F$4,'Rebate Reference Table'!$E$5:$J$128,3,FALSE), VLOOKUP(C70&F70&$F$4,'Rebate Reference Table'!$F$5:$J$128,5,FALSE))","v":20},0,null,4,8,"fl.oz / 100 gal",null,{"$f":"IFERROR(H70*12800/P70,\"\")","v":""}]
["Yes","Yes","MINX 2","Volume",null,"1 gal. bottle Volume 4+",null,null,0,{"$f":"IF($F$4=\"EOP 1\", VLOOKUP(C71&F71&$F$4,'Rebate Reference Table'!$E$5:$J$128,4,FALSE), VLOOKUP(C71&F71&$F$4,'Rebate Reference Table'!$F$5:$J$128,5,FALSE))","v":40},0,null,4,8,"fl.oz / 100 gal",null,{"$f":"IFERROR(H71*12800/P71,\"\")","v":""}]
[null,"Yes","OVERTURE 35 WP","EOP 1 & 2","OVERTURE 35 WP","1 lb. bag",null,null,{"$f":"G72*H72","v":0},{"$f":"IF($F$4=\"EOP 1\", VLOOKUP(C72&F72&$F$4,'Rebate Reference Table'!$E$5:$J$128,3,FALSE), VLOOKUP(C72&F72&$F$4,'Rebate Reference Table'!$F$5:$J$128,5,FALSE))","v":6},0,null,8,8,"oz / 100 gal",null,{"$f":"IFERROR(H72*1600/P72,\"\")","v":""}]
["Yes","Yes","SAFARI 20 SG","EOP 1 & 2","SAFARI 20 SG","12 wt oz. bottle",null,null,0,{"$f":"IF($F$4=\"EOP 1\", VLOOKUP(C73&F73&$F$4,'Rebate Reference Table'!$E$5:$J$128,3,FALSE), VLOOKUP(C73&F73&$F$4,'Rebate Reference Table'!$F$5:$J$128,5,FALSE))","v":10},0,null,3.5,8,"oz / 100 gal",null,{"$f":"IFERROR(H73*1200/P73,\"\")","v":""},"NY 24-C only"]
["Yes","Yes","SAFARI 20 SG","EOP 1 & 2",null,"3 lb. bottle",null,null,0,{"$f":"IF($F$4=\"EOP 1\", VLOOKUP(C74&F74&$F$4,'Rebate Reference Table'!$E$5:$J$128,3,FALSE), VLOOKUP(C74&F74&$F$4,'Rebate Reference Table'!$F$5:$J$128,5,FALSE))","v":15},0,null,3.5,8,"oz / 100 gal",null,{"$f":"IFERROR(H74*4800/P74,\"\")","v":""}]
["Yes","Yes","SAFARI 20 SG","Volume",null,"3 lb. bottle Volume 4+",null,null,0,{"$f":"IF($F$4=\"EOP 1\", VLOOKUP(C75&F75&$F$4,'Rebate Reference Table'!$E$5:$J$128,4,FALSE), VLOOKUP(C75&F75&$F$4,'Rebate Reference Table'!$F$5:$J$128,5,FALSE))","v":25},0,null,3.5,8,"oz / 100 gal",null,{"$f":"IFERROR(H75*4800/P75,\"\")","v":""}]
[null,"Yes","TAME 2.4 EC SPRAY","EOP 1 & 2","TAME 2.4 EC SPRAY","1 qt. bottle",null,null,0,{"$f":"IF($F$4=\"EOP 1\", VLOOKUP(C76&F76&$F$4,'Rebate Reference Table'!$E$5:$J$128,3,FALSE), VLOOKUP(C76&F76&$F$4,'Rebate Reference Table'!$F$5:$J$128,5,FALSE))","v":4},0,null,5.33,16,"fl.oz / 100 gal",null,{"$f":"IFERROR(H76*3200/P76,\"\")","v":""},"AK, DC, PR, Elsewhere Restricted Use Pesticide"]
["Yes","Yes","TETRASAN 5 WDG","EOP 1 & 2","TETRASAN 5 WDG","1 lb. bag",null,null,0,{"$f":"IF($F$4=\"EOP 1\", VLOOKUP(C77&F77&$F$4,'Rebate Reference Table'!$E$5:$J$128,3,FALSE), VLOOKUP(C77&F77&$F$4,'Rebate Reference Table'!$F$5:$J$128,5,FALSE))","v":10},0,null,8,16,"oz / 100 gal",null,{"$f":"IFERROR(H77*1600/P77,\"\")","v":""}]
["Yes","Yes","TETRASAN 5 WDG","Volume",null,"1 lb. bag Volume 8+",null,null,0,{"$f":"IF($F$4=\"EOP 1\", VLOOKUP(C78&F78&$F$4,'Rebate Reference Table'!$E$5:$J$128,4,FALSE), VLOOKUP(C78&F78&$F$4,'Rebate Reference Table'!$F$5:$J$128,5,FALSE))","v":15},0,null,8,16,"oz / 100 gal",null,{"$f":"IFERROR(H78*1600/P78,\"\")","v":""}]
["Yes","Yes","TRISTAR 8.5 SL","EOP 1 & 2","TRISTAR 8.5 SL","1 qt. bottle",null,null,0,{"$f":"IF($F$4=\"EOP 1\", VLOOKUP(C79&F79&$F$4,'Rebate Reference Table'!$E$5:$J$128,3,FALSE), VLOOKUP(C79&F79&$F$4,'Rebate Reference Table'!$F$5:$J$128,5,FALSE))","v":20},0,null,4,25.3,"fl.oz / 100 gal",null,{"$f":"IFERROR(H79*3200/P79,\"\")","v":""},"PR"]
["Yes","Yes","TRISTAR 8.5 SL","EOP 1 & 2",null,"1 gal. bottle",null,null,0,{"$f":"IF($F$4=\"EOP 1\", VLOOKUP(C80&F80&$F$4,'Rebate Reference Table'!$E$5:$J$128,3,FALSE), VLOOKUP(C80&F80&$F$4,'Rebate Reference Table'!$F$5:$J$128,5,FALSE))","v":100},0,null,4,25.3,"fl.oz / 100 gal",null,{"$f":"IFERROR(H80*12800/P80,\"\")","v":""}]
["Yes","Yes","TRISTAR 8.5 SL","Volume",null,"1 gal. bottle Volume 4+",null,null,0,{"$f":"IF($F$4=\"EOP 1\", VLOOKUP(C81&F81&$F$4,'Rebate Reference Table'!$E$5:$J$128,4,FALSE), VLOOKUP(C81&F81&$F$4,'Rebate Reference Table'!$F$5:$J$128,5,FALSE))","v":115},0,null,4,25.3,"fl.oz / 100 gal",null,{"$f":"IFERROR(H81*12800/P81,\"\")","v":""}]
["Herbicides","Herbicides",null,"Herbicides","Herbicides"]
["Yes",null,"4-SPEED XT","EOP 1 & 2","4-SPEED XT","2.5 gal. bottle",null,null,{"$f":"G83*H83","v":0},{"$f":"IF($F$4=\"EOP 1\", VLOOKUP(C83&F83&$F$4,'Rebate Reference Table'!$E$5:$J$128,3,FALSE), VLOOKUP(C83&F83&$F$4,'Rebate Reference Table'!$F$5:$J$128,5,FALSE))","v":15},{"$f":"H83*J83","v":0},null,1.1000000000000001,1.5,"fl.oz / 10002",null,{"$f":"IFERROR((H83*320)/(P83*43.56),\"\")","v":""},"AK, DC, HI, PR"]
["Yes",null,"4-SPEED XT","Volume",null,"2.5 gal. bottle Volume 12+",null,null,0,{"$f":"IF($F$4=\"EOP 1\", VLOOKUP(C84&F84&$F$4,'Rebate Reference Table'!$E$5:$J$128,4,FALSE), VLOOKUP(C84&F84&$F$4,'Rebate Reference Table'!$F$5:$J$128,5,FALSE))","v":20},0,null,1.1000000000000001,1.5,"fl.oz / 10002",null,{"$f":"IFERROR((H84*320)/(P84*43.56),\"\")","v":""}]
["Yes","Yes","BROADSTAR","EOP 1 & 2","BROADSTAR","50 lb. bag",null,null,0,{"$f":"IF($F$4=\"EOP 1\", VLOOKUP(C85&F85&$F$4,'Rebate Reference Table'!$E$5:$J$128,3,FALSE), VLOOKUP(C85&F85&$F$4,'Rebate Reference Table'!$F$5:$J$128,5,FALSE))","v":15},0,null,3.5,3.5,"lb / 10002",null,{"$f":"IFERROR((H85*50)/(P85*43.56),\"\")","v":""}]
["Yes",null,"CELERO","EOP 1 & 2","CELERO","1 lb. bottle",null,null,0,{"$f":"IF($F$4=\"EOP 1\", VLOOKUP(C86&F86&$F$4,'Rebate Reference Table'!$E$5:$J$128,3,FALSE), VLOOKUP(C86&F86&$F$4,'Rebate Reference Table'!$F$5:$J$128,5,FALSE))","v":35},0,null,8,14,"oz / A",null,{"$f":"IFERROR(H86*16/P86,\"\")","v":""},"AK, NY"]
["Yes",null,"CELERO","Volume",null,"1 lb. bottle Volume 4+",null,null,0,{"$f":"IF($F$4=\"EOP 1\", VLOOKUP(C87&F87&$F$4,'Rebate Reference Table'!$E$5:$J$128,4,FALSE), VLOOKUP(C87&F87&$F$4,'Rebate Reference Table'!$F$5:$J$128,5,FALSE))","v":55},0,null,8,14,"oz / A",null,{"$f":"IFERROR(H87*16/P87,\"\")","v":""}]
["Yes","Yes","CERTAINTY","EOP 1 & 2","CERTAINTY","1.25 wt oz. bottle",null,null,0,{"$f":"IF($F$4=\"EOP 1\", VLOOKUP(C88&F88&$F$4,'Rebate Reference Table'!$E$5:$J$128,3,FALSE), VLOOKUP(C88&F88&$F$4,'Rebate Reference Table'!$F$5:$J$128,5,FALSE))","v":30},0,null,0.75,2,"oz / A",null,{"$f":"IFERROR(H88*1.25/P88,\"\")","v":""},"PR"]
["Yes",null,"CHANGE UP","EOP 1 & 2","CHANGE UP","2.5 gal. bottle",null,null,0,{"$f":"IF($F$4=\"EOP 1\", VLOOKUP(C89&F89&$F$4,'Rebate Reference Table'!$E$5:$J$128,3,FALSE), VLOOKUP(C89&F89&$F$4,'Rebate Reference Table'!$F$5:$J$128,5,FALSE))","v":15},0,null,0.45910000000000001,1.1020000000000001,"fl.oz / 10002",null,{"$f":"IFERROR((H89*320)/(P89*43.56),\"\")","v":""},"AK, AZ, PR\nNY DEC 326.23(e) Not For Sale or Use on Long Island"]
["Yes",null,"CHANGE UP","Volume",null,"2.5 gal. bottle Volume 12+",null,null,0,{"$f":"IF($F$4=\"EOP 1\", VLOOKUP(C90&F90&$F$4,'Rebate Reference Table'!$E$5:$J$128,4,FALSE), VLOOKUP(C90&F90&$F$4,'Rebate Reference Table'!$F$5:$J$128,5,FALSE))","v":20},0,null,0.45910000000000001,1.1020000000000001,"fl.oz / 10002",null,{"$f":"IFERROR((H90*320)/(P90*43.56),\"\")","v":""}]
["Yes",null,"CHANGE UP","EOP 1 & 2",null,"30 gal. drum",null,null,0,{"$f":"IF($F$4=\"EOP 1\", VLOOKUP(C91&F91&$F$4,'Rebate Reference Table'!$E$5:$J$128,3,FALSE), VLOOKUP(C91&F91&$F$4,'Rebate Reference Table'!$F$5:$J$128,5,FALSE))","v":240},0,null,0.45910000000000001,1.1020000000000001,"fl.oz / 10002",null,{"$f":"IFERROR((H91*3840)/(P91*43.56),\"\")","v":""}]
["Yes",null,"CHANGE UP","EOP 1 & 2",null,"250 gal. tote",null,null,0,{"$f":"IF($F$4=\"EOP 1\", VLOOKUP(C92&F92&$F$4,'Rebate Reference Table'!$E$5:$J$128,3,FALSE), VLOOKUP(C92&F92&$F$4,'Rebate Reference Table'!$F$5:$J$128,5,FALSE))","v":2000},0,null,0.45910000000000001,1.1020000000000001,"fl.oz / 10002",null,{"$f":"IFERROR((H92*32000)/(P92*43.56),\"\")","v":""}]
["Yes",null,"COOL POWER","EOP 1 & 2","COOL POWER","2.5 gal. bottle",null,null,0,{"$f":"IF($F$4=\"EOP 1\", VLOOKUP(C93&F93&$F$4,'Rebate Reference Table'!$E$5:$J$128,3,FALSE), VLOOKUP(C93&F93&$F$4,'Rebate Reference Table'!$F$5:$J$128,5,FALSE))","v":15},0,null,0.91,1.29,"fl.oz / 10002",null,{"$f":"IFERROR((H93*320)/(P93*43.56),\"\")","v":""},"AK, DC, HI, PR"]
["Yes",null,"COOL POWER","Volume",null,"2.5 gal. bottle Volume 12+",null,null,0,{"$f":"IF($F$4=\"EOP 1\", VLOOKUP(C94&F94&$F$4,'Rebate Reference Table'!$E$5:$J$128,4,FALSE), VLOOKUP(C94&F94&$F$4,'Rebate Reference Table'!$F$5:$J$128,5,FALSE))","v":20},0,null,0.91,1.29,"fl.oz / 10002",null,{"$f":"IFERROR((H94*320)/(P94*43.56),\"\")","v":""}]
["Yes",null,"COOL POWER","EOP 1 & 2",null,"30 gal. drum",null,null,0,{"$f":"IF($F$4=\"EOP 1\", VLOOKUP(C95&F95&$F$4,'Rebate Reference Table'!$E$5:$J$128,3,FALSE), VLOOKUP(C95&F95&$F$4,'Rebate Reference Table'!$F$5:$J$128,5,FALSE))","v":240},0,null,0.91,1.29,"fl.oz / 10002",null,{"$f":"IFERROR((H95*3840)/(P95*43.56),\"\")","v":""}]
["Yes",null,"ESCALADE 2","EOP 1 & 2","ESCALADE 2","2.5 gal. bottle",null,null,0,{"$f":"IF($F$4=\"EOP 1\", VLOOKUP(C96&F96&$F$4,'Rebate Reference Table'!$E$5:$J$128,3,FALSE), VLOOKUP(C96&F96&$F$4,'Rebate Reference Table'!$F$5:$J$128,5,FALSE))","v":15},0,null,0.75,1.1000000000000001,"fl.oz / 10002",null,{"$f":"IFERROR((H96*320)/(P96*43.56),\"\")","v":""},"PR\nNYDEC 326.23(e) Not For Sale or Use on Long Island"]
["Yes",null,"ESCALADE 2","Volume",null,"2.5 gal. bottle Volume 12+",null,null,0,{"$f":"IF($F$4=\"EOP 1\", VLOOKUP(C97&F97&$F$4,'Rebate Reference Table'!$E$5:$J$128,4,FALSE), VLOOKUP(C97&F97&$F$4,'Rebate Reference Table'!$F$5:$J$128,5,FALSE))","v":20},0,null,0.75,1.1000000000000001,"fl.oz / 10002",null,{"$f":"IFERROR((H97*320)/(P97*43.56),\"\")","v":""}]
["Yes",null,"ESCALADE 2","EOP 1 & 2",null,"30 gal. drum",null,null,0,{"$f":"IF($F$4=\"EOP 1\", VLOOKUP(C98&F98&$F$4,'Rebate Reference Table'!$E$5:$J$128,3,FALSE), VLOOKUP(C98&F98&$F$4,'Rebate Reference Table'!$F$5:$J$128,5,FALSE))","v":240},0,null,0.75,1.1000000000000001,"fl.oz / 10002",null,{"$f":"IFERROR((H98*3840)/(P98*43.56),\"\")","v":""}]
["Yes",null,"ESCALADE 2","EOP 1 & 2",null,"250 gal. tote",null,null,0,{"$f":"IF($F$4=\"EOP 1\", VLOOKUP(C99&F99&$F$4,'Rebate Reference Table'!$E$5:$J$128,3,FALSE), VLOOKUP(C99&F99&$F$4,'Rebate Reference Table'!$F$5:$J$128,5,FALSE))","v":2000},0,null,0.75,1.1000000000000001,"fl.oz / 10002",null,{"$f":"IFERROR((H99*32000)/(P99*43.56),\"\")","v":""}]
["Yes",null,"HORSEPOWER","EOP 1 & 2","HORSEPOWER","2.5 gal. bottle",null,null,0,{"$f":"IF($F$4=\"EOP 1\", VLOOKUP(C100&F100&$F$4,'Rebate Reference Table'!$E$5:$J$128,3,FALSE), VLOOKUP(C100&F100&$F$4,'Rebate Reference Table'!$F$5:$J$128,5,FALSE))","v":15},0,null,0.73,1.1000000000000001,"fl.oz / 10002",null,{"$f":"IFERROR((H100*320)/(P100*43.56),\"\")","v":""},"DC, FL"]
["Yes",null,"HORSEPOWER","Volume",null,"2.5 gal. bottle Volume 12+",null,null,0,{"$f":"IF($F$4=\"EOP 1\", VLOOKUP(C101&F101&$F$4,'Rebate Reference Table'!$E$5:$J$128,4,FALSE), VLOOKUP(C101&F101&$F$4,'Rebate Reference Table'!$F$5:$J$128,5,FALSE))","v":20},0,null,0.73,1.1000000000000001,"fl.oz / 10002",null,{"$f":"IFERROR((H101*320)/(P101*43.56),\"\")","v":""}]
["Yes",null,"HORSEPOWER","EOP 1 & 2",null,"30 gal. drum",null,null,0,{"$f":"IF($F$4=\"EOP 1\", VLOOKUP(C102&F102&$F$4,'Rebate Reference Table'!$E$5:$J$128,3,FALSE), VLOOKUP(C102&F102&$F$4,'Rebate Reference Table'!$F$5:$J$128,5,FALSE))","v":240},0,null,0.73,1.1000000000000001,"fl.oz / 10002",null,{"$f":"IFERROR((H102*3840)/(P102*43.56),\"\")","v":""}]
["Yes",null,"HORSEPOWER","EOP 1 & 2",null,"250 gal. tote",null,null,0,{"$f":"IF($F$4=\"EOP 1\", VLOOKUP(C103&F103&$F$4,'Rebate Reference Table'!$E$5:$J$128,3,FALSE), VLOOKUP(C103&F103&$F$4,'Rebate Reference Table'!$F$5:$J$128,5,FALSE))","v":2000},0,null,0.75,1.1000000000000001,"fl.oz / 10002",null,{"$f":"IFERROR((H103*32000)/(P103*43.56),\"\")","v":""}]
["Yes",null,"MILLENNIUM ULTRA 2","EOP 1 & 2","MILLENNIUM ULTRA 2","2.5 gal. bottle",null,null,0,{"$f":"IF($F$4=\"EOP 1\", VLOOKUP(C104&F104&$F$4,'Rebate Reference Table'!$E$5:$J$128,3,FALSE), VLOOKUP(C104&F104&$F$4,'Rebate Reference Table'!$F$5:$J$128,5,FALSE))","v":10},0,null,0.73,1.1000000000000001,"fl.oz / 10002",null,{"$f":"IFERROR((H104*320)/(P104*43.56),\"\")","v":""},"AZ, PR\nNY DEC 326.23(e) Not For Sale or Use on Long Island"]
["Yes",null,"MILLENNIUM ULTRA 2","Volume",null,"2.5 gal. bottle Volume 6+",null,null,0,{"$f":"IF($F$4=\"EOP 1\", VLOOKUP(C105&F105&$F$4,'Rebate Reference Table'!$E$5:$J$128,4,FALSE), VLOOKUP(C105&F105&$F$4,'Rebate Reference Table'!$F$5:$J$128,5,FALSE))","v":50},0,null,0.73,1.1000000000000001,"fl.oz / 10002",null,{"$f":"IFERROR((H105*320)/(P105*43.56),\"\")","v":""}]
["Yes",null,"MILLENNIUM ULTRA 2","EOP 1 & 2",null,"30 gal. drum",null,null,0,{"$f":"IF($F$4=\"EOP 1\", VLOOKUP(C106&F106&$F$4,'Rebate Reference Table'!$E$5:$J$128,3,FALSE), VLOOKUP(C106&F106&$F$4,'Rebate Reference Table'!$F$5:$J$128,5,FALSE))","v":600},0,null,0.73,1.1000000000000001,"fl.oz / 10002",null,{"$f":"IFERROR((H106*3840)/(P106*43.56),\"\")","v":""}]
["Yes","Yes","SUREGUARD EZ","EOP 1 & 2","SUREGUARD EZ","1 pt. bottle",null,null,0,{"$f":"IF($F$4=\"EOP 1\", VLOOKUP(C107&F107&$F$4,'Rebate Reference Table'!$E$5:$J$128,3,FALSE), VLOOKUP(C107&F107&$F$4,'Rebate Reference Table'!$F$5:$J$128,5,FALSE))","v":6},0,null,8,12,"fl.oz / A",null,{"$f":"IFERROR(H107*16/P107,\"\")","v":""},"HI, PR\nNY Restricted Use Pesticide"]
["Yes","Yes","SUREGUARD EZ","EOP 1 & 2",null,"64 fl oz. bottle",null,null,0,{"$f":"IF($F$4=\"EOP 1\", VLOOKUP(C108&F108&$F$4,'Rebate Reference Table'!$E$5:$J$128,3,FALSE), VLOOKUP(C108&F108&$F$4,'Rebate Reference Table'!$F$5:$J$128,5,FALSE))","v":25},0,null,8,12,"fl.oz / A",null,{"$f":"IFERROR(H108*64/P108,\"\")","v":""}]
["Yes","Yes","SUREGUARD EZ","Volume",null,"64 fl oz. bottle Volume 8+",null,null,0,{"$f":"IF($F$4=\"EOP 1\", VLOOKUP(C109&F109&$F$4,'Rebate Reference Table'!$E$5:$J$128,4,FALSE), VLOOKUP(C109&F109&$F$4,'Rebate Reference Table'!$F$5:$J$128,5,FALSE))","v":30},0,null,8,12,"fl.oz / A",null,{"$f":"IFERROR(H109*64/P109,\"\")","v":""}]
["Yes",null,"TRIPLET LOW ODOR","EOP 1 & 2","TRIPLET LOW ODOR","2.5 gal. bottle",null,null,0,{"$f":"IF($F$4=\"EOP 1\", VLOOKUP(C110&F110&$F$4,'Rebate Reference Table'!$E$5:$J$128,3,FALSE), VLOOKUP(C110&F110&$F$4,'Rebate Reference Table'!$F$5:$J$128,5,FALSE))","v":15},0,null,0.67,1.5,"fl.oz / 10002",null,{"$f":"IFERROR((H110*320)/(P110*43.56),\"\")","v":""},"MT, ND, PR"]
["Yes",null,"TRIPLET LOW ODOR","EOP 1 & 2",null,"30 gal. drum",null,null,0,{"$f":"IF($F$4=\"EOP 1\", VLOOKUP(C111&F111&$F$4,'Rebate Reference Table'!$E$5:$J$128,3,FALSE), VLOOKUP(C111&F111&$F$4,'Rebate Reference Table'!$F$5:$J$128,5,FALSE))","v":180},0,null,0.67,1.5,"fl.oz / 10002",null,{"$f":"IFERROR((H111*3840)/(P111*43.56),\"\")","v":""}]
["Yes",null,"VELOCITY PM","EOP 1 & 2","VELOCITY PM","1 pt. bottle",null,null,0,{"$f":"IF($F$4=\"EOP 1\", VLOOKUP(C112&F112&$F$4,'Rebate Reference Table'!$E$5:$J$128,3,FALSE), VLOOKUP(C112&F112&$F$4,'Rebate Reference Table'!$F$5:$J$128,5,FALSE))","v":18},0,null,"consult label","consult label","fl.oz / A",null,{"$f":"IFERROR(H112*16/P112,\"\")","v":""},"AK, DC, PR"]

{"sheet":"Rebate Reference Table","index":2,"n_rows":138,"n_cols":12,"rows_kept":138,"cut":false,"hidden":true,"merged":[]}
["EOP 1",null,null,null,null,null,null,null,null,null,null,"All Products"]
["EOP 2",null,null,null,null,null,null,null,"Pairing EOP 1","Pairing EOP 2",null,"Golf & Turf Products"]
["Item Number","Product Description","Product","Unit Size","Concat EOP 1","Concat EOP 2","EOP 1 Rebate/Unit","EOP 1 Volume Rebate/Unit","Pairing Rebate/Unit","EOP 2 Rebate/Unit",null,"Greenhouse & Nursery Products"]
[null,"Herbicides","Herbicides"]
[10010225,"4-SPEED XT 2x2.5 Gallon Case","4-SPEED XT","2.5 gal. bottle",{"$f":"CONCATENATE(C5,D5,$A$1)","v":"4-SPEED XT2.5 gal. bottleEOP 1"},{"$f":"CONCATENATE(C5,D5,$A$2)","v":"4-SPEED XT2.5 gal. bottleEOP 2"},15,null,null,5]
[10010225,"4-SPEED XT 2x2.5 Gallon Case","4-SPEED XT","2.5 gal. bottle Volume 12+","4-SPEED XT2.5 gal. bottle Volume 12+EOP 1","4-SPEED XT2.5 gal. bottle Volume 12+EOP 2",null,20,null,0]
[10850464,"ALLSTAR 4x64 Fl oz Case","ALLSTAR","64 fl oz. bottle","ALLSTAR64 fl oz. bottleEOP 1","ALLSTAR64 fl oz. bottleEOP 2",7,null,null,5]
[10850225,"ALLSTAR 2x2.5 Gallon Case","ALLSTAR","2.5 gal. bottle","ALLSTAR2.5 gal. bottleEOP 1","ALLSTAR2.5 gal. bottleEOP 2",30,null,null,20]
[10850225,"ALLSTAR 2x2.5 Gallon Case","ALLSTAR","2.5 gal. bottle Volume 6+","ALLSTAR2.5 gal. bottle Volume 6+EOP 1","ALLSTAR2.5 gal. bottle Volume 6+EOP 2",null,35,null,0]
[10850030,"ALLSTAR 30 Gallon Drum","ALLSTAR","30 gal. drum","ALLSTAR30 gal. drumEOP 1","ALLSTAR30 gal. drumEOP 2",420,null,null,240]
[10850265,"ALLSTAR 265 Gallon Tote","ALLSTAR","265 gal. tote",{"$f":"CONCATENATE(C11,D11,$A$1)","v":"ALLSTAR265 gal. toteEOP 1"},{"$f":"CONCATENATE(C11,D11,$A$2)","v":"ALLSTAR265 gal. toteEOP 2"},3710,null,null,2120]
[10583050,"BROADSTAR 50 Lb Bag","BROADSTAR","50 lb. bag",{"$f":"CONCATENATE(C12,D12,$A$1)","v":"BROADSTAR50 lb. bagEOP 1"},{"$f":"CONCATENATE(C12,D12,$A$2)","v":"BROADSTAR50 lb. bagEOP 2"},15,null,null,3]
[10701401,"CELERO 4x1 Lb Case","CELERO","1 lb. bottle","CELERO1 lb. bottleEOP 1","CELERO1 lb. bottleEOP 2",35,null,null,4]
[10701401,"CELERO 4x1 Lb Case","CELERO","1 lb. bottle Volume 4+",{"$f":"CONCATENATE(C14,D14,$A$1)","v":"CELERO1 lb. bottle Volume 4+EOP 1"},{"$f":"CONCATENATE(C14,D14,$A$2)","v":"CELERO1 lb. bottle Volume 4+EOP 2"},null,55,null,0]
[10699170,"CERTAINTY 10x1.25 Wt oz Case","CERTAINTY","1.25 wt oz. bottle","CERTAINTY1.25 wt oz. bottleEOP 1","CERTAINTY1.25 wt oz. bottleEOP 2",30,null,null,2]
[10555225,"CHANGE UP 2x2.5 Gallon Case","CHANGE UP","2.5 gal. bottle","CHANGE UP2.5 gal. bottleEOP 1","CHANGE UP2.5 gal. bottleEOP 2",15,null,null,5]
[10555225,"CHANGE UP 2x2.5 Gallon Case","CHANGE UP","2.5 gal. bottle Volume 12+",{"$f":"CONCATENATE(C17,D17,$A$1)","v":"CHANGE UP2.5 gal. bottle Volume 12+EOP 1"},{"$f":"CONCATENATE(C17,D17,$A$2)","v":"CHANGE UP2.5 gal. bottle Volume 12+EOP 2"},null,20,null,0]
[10555030,"CHANGE UP 30 Gallon Drum","CHANGE UP","30 gal. drum","CHANGE UP30 gal. drumEOP 1","CHANGE UP30 gal. drumEOP 2",240,null,null,60]
[10555250,"CHANGE UP 250 Gallon Tote","CHANGE UP","250 gal. tote","CHANGE UP250 gal. toteEOP 1","CHANGE UP250 gal. toteEOP 2",2000,null,null,500]
[10070225,"COOL POWER 2x2.5 Gallon Case","COOL POWER","2.5 gal. bottle","COOL POWER2.5 gal. bottleEOP 1","COOL POWER2.5 gal. bottleEOP 2",15,null,null,5]
[10070225,"COOL POWER 2x2.5 Gallon Case","COOL POWER","2.5 gal. bottle Volume 12+",{"$f":"CONCATENATE(C21,D21,$A$1)","v":"COOL POWER2.5 gal. bottle Volume 12+EOP 1"},{"$f":"CONCATENATE(C21,D21,$A$2)","v":"COOL POWER2.5 gal. bottle Volume 12+EOP 2"},null,20,null,0]
[10070030,"COOL POWER 30 Gallon Drum","COOL POWER","30 gal. drum","COOL POWER30 gal. drumEOP 1","COOL POWER30 gal. drumEOP 2",240,null,null,60]
[10111225,"ESCALADE 2 2x2.5 Gallon Case","ESCALADE 2","2.5 gal. bottle","ESCALADE 22.5 gal. bottleEOP 1","ESCALADE 22.5 gal. bottleEOP 2",15,null,null,5]
[10111225,"ESCALADE 2 2x2.5 Gallon Case","ESCALADE 2","2.5 gal. bottle Volume 12+",{"$f":"CONCATENATE(C24,D24,$A$1)","v":"ESCALADE 22.5 gal. bottle Volume 12+EOP 1"},{"$f":"CONCATENATE(C24,D24,$A$2)","v":"ESCALADE 22.5 gal. bottle Volume 12+EOP 2"},null,20,null,0]
[10111030,"ESCALADE 2 30 Gallon Drum","ESCALADE 2","30 gal. drum","ESCALADE 230 gal. drumEOP 1","ESCALADE 230 gal. drumEOP 2",240,null,null,60]
[10111250,"ESCALADE 2 250 Gallon Tote","ESCALADE 2","250 gal. tote","ESCALADE 2250 gal. toteEOP 1","ESCALADE 2250 gal. toteEOP 2",2000,null,null,500]
[10139225,"HORSEPOWER 2x2.5 Gallon Case","HORSEPOWER","2.5 gal. bottle","HORSEPOWER2.5 gal. bottleEOP 1","HORSEPOWER2.5 gal. bottleEOP 2",15,null,null,5]
[10139225,"HORSEPOWER 2x2.5 Gallon Case","HORSEPOWER","2.5 gal. bottle Volume 12+",{"$f":"CONCATENATE(C28,D28,$A$1)","v":"HORSEPOWER2.5 gal. bottle Volume 12+EOP 1"},{"$f":"CONCATENATE(C28,D28,$A$2)","v":"HORSEPOWER2.5 gal. bottle Volume 12+EOP 2"},null,20,null,0]
[10139030,"HORSEPOWER 30 Gallon Drum","HORSEPOWER","30 gal. drum","HORSEPOWER30 gal. drumEOP 1","HORSEPOWER30 gal. drumEOP 2",240,null,null,60]
[10139250,"HORSEPOWER 250 Gallon Tote","HORSEPOWER","250 gal. tote",{"$f":"CONCATENATE(C30,D30,$A$1)","v":"HORSEPOWER250 gal. toteEOP 1"},{"$f":"CONCATENATE(C30,D30,$A$2)","v":"HORSEPOWER250 gal. toteEOP 2"},2000,null,null,500]
[10181174,"MANOR 16x2 Wt oz Case","MANOR","2 wt oz. bottle","MANOR2 wt oz. bottleEOP 1","MANOR2 wt oz. bottleEOP 2",4,null,null,2]
[10181880,"MANOR 8x8 Wt oz Case","MANOR","8 wt oz. bottle","MANOR8 wt oz. bottleEOP 1","MANOR8 wt oz. bottleEOP 2",16,null,null,8]
[10195225,"MILLENNIUM ULTRA 2 2x2.5 Gallon Case","MILLENNIUM ULTRA 2","2.5 gal. bottle","MILLENNIUM ULTRA 22.5 gal. bottleEOP 1","MILLENNIUM ULTRA 22.5 gal. bottleEOP 2",10,null,null,5]
[10195225,"MILLENNIUM ULTRA 2 2x2.5 Gallon Case","MILLENNIUM ULTRA 2","2.5 gal. bottle Volume 6+",{"$f":"CONCATENATE(C34,D34,$A$1)","v":"MILLENNIUM ULTRA 22.5 gal. bottle Volume 6+EOP 1"},{"$f":"CONCATENATE(C34,D34,$A$2)","v":"MILLENNIUM ULTRA 22.5 gal. bottle Volume 6+EOP 2"},null,50,null,0]
[10195030,"MILLENNIUM ULTRA 2 30 Gallon Drum","MILLENNIUM ULTRA 2","30 gal. drum","MILLENNIUM ULTRA 230 gal. drumEOP 1","MILLENNIUM ULTRA 230 gal. drumEOP 2",600,null,null,60]
[10895998,"SOUTHPAW 12x16 Wt oz Case","SOUTHPAW","16 wt oz. bottle",{"$f":"CONCATENATE(C36,D36,$A$1)","v":"SOUTHPAW16 wt oz. bottleEOP 1"},{"$f":"CONCATENATE(C36,D36,$A$2)","v":"SOUTHPAW16 wt oz. bottleEOP 2"},5,null,null,3]
[10895045,"SOUTHPAW 4x5 Lb Case","SOUTHPAW","5 lb. bottle",{"$f":"CONCATENATE(C37,D37,$A$1)","v":"SOUTHPAW5 lb. bottleEOP 1"},{"$f":"CONCATENATE(C37,D37,$A$2)","v":"SOUTHPAW5 lb. bottleEOP 2"},25,null,null,10]
[10895045,"SOUTHPAW 4x5 Lb Case","SOUTHPAW","5 lb. bottle Volume 4+",{"$f":"CONCATENATE(C38,D38,$A$1)","v":"SOUTHPAW5 lb. bottle Volume 4+EOP 1"},{"$f":"CONCATENATE(C38,D38,$A$2)","v":"SOUTHPAW5 lb. bottle Volume 4+EOP 2"},null,50,null,0]
[10874861,"SUREGUARD EZ 8x1 Pt Case","SUREGUARD EZ","1 pt. bottle","SUREGUARD EZ1 pt. bottleEOP 1","SUREGUARD EZ1 pt. bottleEOP 2",6,null,null,2]
[10874464,"SUREGUARD EZ 4x64 Fl oz Case","SUREGUARD EZ","64 fl oz. bottle",{"$f":"CONCATENATE(C40,D40,$A$1)","v":"SUREGUARD EZ64 fl oz. bottleEOP 1"},{"$f":"CONCATENATE(C40,D40,$A$2)","v":"SUREGUARD EZ64 fl oz. bottleEOP 2"},25,null,null,5]
[10874464,"SUREGUARD EZ 4x64 Fl oz Case","SUREGUARD EZ","64 fl oz. bottle Volume 8+","SUREGUARD EZ64 fl oz. bottle Volume 8+EOP 1","SUREGUARD EZ64 fl oz. bottle Volume 8+EOP 2",null,30,null,0]
[10872041,"SUREGUARD XTRA 4x1 Gallon Case","SUREGUARD XTRA","1 gal. bottle",{"$f":"CONCATENATE(C42,D42,$A$1)","v":"SUREGUARD XTRA1 gal. bottleEOP 1"},{"$f":"CONCATENATE(C42,D42,$A$2)","v":"SUREGUARD XTRA1 gal. bottleEOP 2"},85,null,null,25]
[10872041,"SUREGUARD XTRA 4x1 Gallon Case","SUREGUARD XTRA","1 gal. bottle Volume 4+","SUREGUARD XTRA1 gal. bottle Volume 4+EOP 1","SUREGUARD XTRA1 gal. bottle Volume 4+EOP 2",null,120,null,0]
[10724225,"SURE POWER 2x2.5 Gallon Case","SURE POWER","2.5 gal. bottle","SURE POWER2.5 gal. bottleEOP 1","SURE POWER2.5 gal. bottleEOP 2",10,null,null,5]
[10724030,"SURE POWER 30 Gallon Drum","SURE POWER","30 gal. drum","SURE POWER30 gal. drumEOP 1","SURE POWER30 gal. drumEOP 2",120,null,null,60]
[10361225,"TRIPLET LOW ODOR 2x2.5 Gallon Case","TRIPLET LOW ODOR","2.5 gal. bottle","TRIPLET LOW ODOR2.5 gal. bottleEOP 1","TRIPLET LOW ODOR2.5 gal. bottleEOP 2",15,null,null,5]
[10361030,"TRIPLET LOW ODOR 30 Gallon Drum","TRIPLET LOW ODOR","30 gal. drum","TRIPLET LOW ODOR30 gal. drumEOP 1","TRIPLET LOW ODOR30 gal. drumEOP 2",180,null,null,60]
[10885861,"VELOCITY PM 8x1 Pt Case","VELOCITY PM","1 pt. bottle",{"$f":"CONCATENATE(C48,D48,$A$1)","v":"VELOCITY PM1 pt. bottleEOP 1"},{"$f":"CONCATENATE(C48,D48,$A$2)","v":"VELOCITY PM1 pt. bottleEOP 2"},18,null,null,10]
[null,"Insecticides","Insecticides",null,"InsecticidesEOP 1","InsecticidesEOP 2"]
[10669032,"ALOFT LC G 30 Lb Bag","ALOFT LC G","30 lb. bag",{"$f":"CONCATENATE(C50,D50,$A$1)","v":"ALOFT LC G30 lb. bagEOP 1"},{"$f":"CONCATENATE(C50,D50,$A$2)","v":"ALOFT LC G30 lb. bagEOP 2"},3,null,null,1]
[10669032,"ALOFT LC G 30 Lb Bag","ALOFT LC G","30 lb. bag Volume 50+",{"$f":"CONCATENATE(C51,D51,$A$1)","v":"ALOFT LC G30 lb. bag Volume 50+EOP 1"},{"$f":"CONCATENATE(C51,D51,$A$2)","v":"ALOFT LC G30 lb. bag Volume 50+EOP 2"},null,6,null,0]
[10678464,"ALOFT GC SC 4x64 Fl oz Case","ALOFT GC SC","64 fl oz. bottle","ALOFT GC SC64 fl oz. bottleEOP 1","ALOFT GC SC64 fl oz. bottleEOP 2",65,null,null,10]
[10678464,"ALOFT GC SC 4x64 Fl oz Case","ALOFT GC SC","64 fl oz. bottle Volume 8+",{"$f":"CONCATENATE(C53,D53,$A$1)","v":"ALOFT GC SC64 fl oz. bottle Volume 8+EOP 1"},{"$f":"CONCATENATE(C53,D53,$A$2)","v":"ALOFT GC SC64 fl oz. bottle Volume 8+EOP 2"},null,130,null,0]
[10677464,"ALOFT LC SC 4x64 Fl oz Case","ALOFT LC SC","64 fl oz. bottle","ALOFT LC SC64 fl oz. bottleEOP 1","ALOFT LC SC64 fl oz. bottleEOP 2",65,null,null,10]
[10677464,"ALOFT LC SC 4x64 Fl oz Case","ALOFT LC SC","64 fl oz. bottle Volume 8+",{"$f":"CONCATENATE(C55,D55,$A$1)","v":"ALOFT LC SC64 fl oz. bottle Volume 8+EOP 1"},{"$f":"CONCATENATE(C55,D55,$A$2)","v":"ALOFT LC SC64 fl oz. bottle Volume 8+EOP 2"},null,130,null,0]
[10580032,"ARENA 0.25 G 30 Lb Bag","ARENA 0.25 G","30 lb. bag","ARENA 0.25 G30 lb. bagEOP 1","ARENA 0.25 G30 lb. bagEOP 2",3,null,null,1]
[10580032,"ARENA 0.25 G 30 Lb Bag","ARENA 0.25 G","30 lb. bag Volume 50+",{"$f":"CONCATENATE(C57,D57,$A$1)","v":"ARENA 0.25 G30 lb. bag Volume 50+EOP 1"},{"$f":"CONCATENATE(C57,D57,$A$2)","v":"ARENA 0.25 G30 lb. bag Volume 50+EOP 2"},null,6,null,0]
[10581440,"ARENA 50 WDG 4x40 Wt oz Case","ARENA 50 WDG","40 wt oz. bottle","ARENA 50 WDG40 wt oz. bottleEOP 1","ARENA 50 WDG40 wt oz. bottleEOP 2",50,null,null,20]
[10581440,"ARENA 50 WDG 4x40 Wt oz Case","ARENA 50 WDG","40 wt oz. bottle Volume 8+",{"$f":"CONCATENATE(C59,D59,$A$1)","v":"ARENA 50 WDG40 wt oz. bottle Volume 8+EOP 1"},{"$f":"CONCATENATE(C59,D59,$A$2)","v":"ARENA 50 WDG40 wt oz. bottle Volume 8+EOP 2"},null,140,null,0]
[10586301,"DIPEL PRO DF 30x1 Lb Case","DIPEL PRO DF","1 lb. bag","DIPEL PRO DF1 lb. bagEOP 1","DIPEL PRO DF1 lb. bagEOP 2",1,null,null,1]
[10588432,"DISTANCE IGR 4x1 Qt Case","DISTANCE IGR","1 qt. bottle","DISTANCE IGR1 qt. bottleEOP 1","DISTANCE IGR1 qt. bottleEOP 2",38,null,null,5]
[10588432,"DISTANCE IGR 4x1 Qt Case","DISTANCE IGR","1 qt. bottle Volume 4+",{"$f":"CONCATENATE(C62,D62,$A$1)","v":"DISTANCE IGR1 qt. bottle Volume 4+EOP 1"},{"$f":"CONCATENATE(C62,D62,$A$2)","v":"DISTANCE IGR1 qt. bottle Volume 4+EOP 2"},null,45,null,0]
[10809861,"ENGULF GHN 8x1 Pt Case","ENGULF GHN","1 pt. bottle","ENGULF GHN1 pt. bottleEOP 1","ENGULF GHN1 pt. bottleEOP 2",20,null,null,10]
[10809861,"ENGULF GHN 8x1 Pt Case","ENGULF GHN","1 pt. bottle Volume 8+",{"$f":"CONCATENATE(C64,D64,$A$1)","v":"ENGULF GHN1 pt. bottle Volume 8+EOP 1"},{"$f":"CONCATENATE(C64,D64,$A$2)","v":"ENGULF GHN1 pt. bottle Volume 8+EOP 2"},null,30,null,0]
[10591163,"GNATROL WDG 16 Lb Pail","GNATROL WDG","16 lb. pail","GNATROL WDG16 lb. pailEOP 1","GNATROL WDG16 lb. pailEOP 2",16,null,null,8]
[10666432,"MINX 2 4x1 Qt Case","MINX 2","1 qt. bottle","MINX 21 qt. bottleEOP 1","MINX 21 qt. bottleEOP 2",5,null,null,2]
[10666041,"MINX 2 4x1 Gallon Case","MINX 2","1 gal. bottle","MINX 21 gal. bottleEOP 1","MINX 21 gal. bottleEOP 2",20,null,null,6]
[10666041,"MINX 2 4x1 Gallon Case","MINX 2","1 gal. bottle Volume 4+",{"$f":"CONCATENATE(C68,D68,$A$1)","v":"MINX 21 gal. bottle Volume 4+EOP 1"},{"$f":"CONCATENATE(C68,D68,$A$2)","v":"MINX 21 gal. bottle Volume 4+EOP 2"},null,40,null,0]
[10881432,"OPTERAPRO 4x1 Qt Case","OPTERAPRO","1 qt. bottle",{"$f":"CONCATENATE(C69,D69,$A$1)","v":"OPTERAPRO1 qt. bottleEOP 1"},{"$f":"CONCATENATE(C69,D69,$A$2)","v":"OPTERAPRO1 qt. bottleEOP 2"},120,null,null,90]
[10881432,"OPTERAPRO 4x1 Qt Case","OPTERAPRO","1 qt. bottle Volume 4+",{"$f":"CONCATENATE(C70,D70,$A$1)","v":"OPTERAPRO1 qt. bottle Volume 4+EOP 1"},{"$f":"CONCATENATE(C70,D70,$A$2)","v":"OPTERAPRO1 qt. bottle Volume 4+EOP 2"},null,140,null,0]
[10881041,"OPTERAPRO 4x1 Gallon Case","OPTERAPRO","1 gal. bottle",{"$f":"CONCATENATE(C71,D71,$A$1)","v":"OPTERAPRO1 gal. bottleEOP 1"},{"$f":"CONCATENATE(C71,D71,$A$2)","v":"OPTERAPRO1 gal. bottleEOP 2"},450,null,null,275]
[10881041,"OPTERAPRO 4x1 Gallon Case","OPTERAPRO","1 gal. bottle Volume 4+",{"$f":"CONCATENATE(C72,D72,$A$1)","v":"OPTERAPRO1 gal. bottle Volume 4+EOP 1"},{"$f":"CONCATENATE(C72,D72,$A$2)","v":"OPTERAPRO1 gal. bottle Volume 4+EOP 2"},null,575,null,0]
[10881041,"OPTERAPRO 4x1 Gallon Case","OPTERAPRO","1 gal. bottle Pairing 4",{"$f":"CONCATENATE(C73,D73,$A$1)","v":"OPTERAPRO1 gal. bottle Pairing 4EOP 1"},{"$f":"CONCATENATE(C73,D73,$A$2)","v":"OPTERAPRO1 gal. bottle Pairing 4EOP 2"},null,null,575,575]
[10592882,"OVERTURE 35 WP 8x8x2 Wt oz Case","OVERTURE 35 WP","1 lb. bag","OVERTURE 35 WP1 lb. bagEOP 1","OVERTURE 35 WP1 lb. bagEOP 2",6,null,null,2]
[10594164,"SAFARI 20 SG 16x12 Wt oz Case","SAFARI 20 SG","12 wt oz. bottle","SAFARI 20 SG12 wt oz. bottleEOP 1","SAFARI 20 SG12 wt oz. bottleEOP 2",10,null,null,3]
[10594403,"SAFARI 20 SG 4x3 Lb Case","SAFARI 20 SG","3 lb. bottle",{"$f":"CONCATENATE(C76,D76,$A$1)","v":"SAFARI 20 SG3 lb. bottleEOP 1"},{"$f":"CONCATENATE(C76,D76,$A$2)","v":"SAFARI 20 SG3 lb. bottleEOP 2"},15,null,null,5]
[10594403,"SAFARI 20 SG 4x3 Lb Case","SAFARI 20 SG","3 lb. bottle Volume 4+","SAFARI 20 SG3 lb. bottle Volume 4+EOP 1","SAFARI 20 SG3 lb. bottle Volume 4+EOP 2",null,25,null,0]
[10900432,"SIMPELL 4x1 Qt Case","SIMPELL","1 qt. bottle",{"$f":"CONCATENATE(C78,D78,$A$1)","v":"SIMPELL1 qt. bottleEOP 1"},{"$f":"CONCATENATE(C78,D78,$A$2)","v":"SIMPELL1 qt. bottleEOP 2"},15,null,null,6]
[10900041,"SIMPELL 4x1 Gallon Case","SIMPELL","1 gal. bottle",{"$f":"CONCATENATE(C79,D79,$A$1)","v":"SIMPELL1 gal. bottleEOP 1"},{"$f":"CONCATENATE(C79,D79,$A$2)","v":"SIMPELL1 gal. bottleEOP 2"},60,null,null,25]
[10900041,"SIMPELL 4x1 Gallon Case","SIMPELL","1 gal. bottle Volume 4+",{"$f":"CONCATENATE(C80,D80,$A$1)","v":"SIMPELL1 gal. bottle Volume 4+EOP 1"},{"$f":"CONCATENATE(C80,D80,$A$2)","v":"SIMPELL1 gal. bottle Volume 4+EOP 2"},null,85,null,0]
[10598121,"TAME 2.4 EC SPRAY 12x1 Qt Case","TAME 2.4 EC SPRAY","1 qt. bottle","TAME 2.4 EC SPRAY1 qt. bottleEOP 1","TAME 2.4 EC SPRAY1 qt. bottleEOP 2",4,null,null,2]
[10599882,"TETRASAN 5 WDG 8x8x2 Wt oz Case","TETRASAN 5 WDG","1 lb. bag","TETRASAN 5 WDG1 lb. bagEOP 1","TETRASAN 5 WDG1 lb. bagEOP 2",10,null,null,3]
[10599882,"TETRASAN 5 WDG 8x8x2 Wt oz Case","TETRASAN 5 WDG","1 lb. bag Volume 8+",{"$f":"CONCATENATE(C83,D83,$A$1)","v":"TETRASAN 5 WDG1 lb. bag Volume 8+EOP 1"},{"$f":"CONCATENATE(C83,D83,$A$2)","v":"TETRASAN 5 WDG1 lb. bag Volume 8+EOP 2"},null,15,null,0]
[10520432,"TRISTAR 8.5 SL 4x1 Qt Case","TRISTAR 8.5 SL","1 qt. bottle","TRISTAR 8.5 SL1 qt. bottleEOP 1","TRISTAR 8.5 SL1 qt. bottleEOP 2",20,null,null,5]
[10520041,"TRISTAR 8.5 SL 4x1 Gallon Case","TRISTAR 8.5 SL","1 gal. bottle","TRISTAR 8.5 SL1 gal. bottleEOP 1","TRISTAR 8.5 SL1 gal. bottleEOP 2",100,null,null,20]
[10520041,"TRISTAR 8.5 SL 4x1 Gallon Case","TRISTAR 8.5 SL","1 gal. bottle Volume 4+",{"$f":"CONCATENATE(C86,D86,$A$1)","v":"TRISTAR 8.5 SL1 gal. bottle Volume 4+EOP 1"},{"$f":"CONCATENATE(C86,D86,$A$2)","v":"TRISTAR 8.5 SL1 gal. bottle Volume 4+EOP 2"},null,115,null,0]
[null,"Fungicides","Fungicides",null,"FungicidesEOP 1","FungicidesEOP 2"]
[10502225,"26/36 2x2.5 Gallon Case","26/36","2.5 gal. bottle","26/362.5 gal. bottleEOP 1","26/362.5 gal. bottleEOP 2",20,null,null,10]
[10502225,"26/36 2x2.5 Gallon Case","26/36","2.5 gal. bottle Pairing 3",{"$f":"CONCATENATE(C89,D89,$A$1)","v":"26/362.5 gal. bottle Pairing 3EOP 1"},{"$f":"CONCATENATE(C89,D89,$A$2)","v":"26/362.5 gal. bottle Pairing 3EOP 2"},null,null,30,30]
[10495032,"3336 DG LITE 30 Lb Bag","3336 DG LITE","30 lb. bag",{"$f":"CONCATENATE(C90,D90,$A$1)","v":"3336 DG LITE30 lb. bagEOP 1"},{"$f":"CONCATENATE(C90,D90,$A$2)","v":"3336 DG LITE30 lb. bagEOP 2"},3,null,null,1]
[10556045,"3336 EG 4x5 Lb Case","3336 EG","5 lb. bottle","3336 EG5 lb. bottleEOP 1","3336 EG5 lb. bottleEOP 2",10,null,null,3]
[10498121,"3336 F 12x1 Qt Case","3336 F","1 qt. bottle","3336 F1 qt. bottleEOP 1","3336 F1 qt. bottleEOP 2",3,null,null,1]
[10498225,"3336 F 2x2.5 Gallon Case","3336 F","2.5 gal. bottle","3336 F2.5 gal. bottleEOP 1","3336 F2.5 gal. bottleEOP 2",30,null,null,10]
[10498225,"3336 F 2x2.5 Gallon Case","3336 F","2.5 gal. bottle Volume 4+",{"$f":"CONCATENATE(C94,D94,$A$1)","v":"3336 F2.5 gal. bottle Volume 4+EOP 1"},{"$f":"CONCATENATE(C94,D94,$A$2)","v":"3336 F2.5 gal. bottle Volume 4+EOP 2"},null,60,null,0]
[10579121,"ADORN 12x1 Qt Case","ADORN","1 qt. bottle","ADORN1 qt. bottleEOP 1","ADORN1 qt. bottleEOP 2",15,null,null,4]
[10500324,"AFFIRM WDG 3x2.4 Lb Case","AFFIRM WDG","2.4 lb. bag","AFFIRM WDG2.4 lb. bagEOP 1","AFFIRM WDG2.4 lb. bagEOP 2",10,null,null,5]
[10500324,"AFFIRM WDG 3x2.4 Lb Case","AFFIRM WDG","2.4 lb. bag Volume 6+",{"$f":"CONCATENATE(C97,D97,$A$1)","v":"AFFIRM WDG2.4 lb. bag Volume 6+EOP 1"},{"$f":"CONCATENATE(C97,D97,$A$2)","v":"AFFIRM WDG2.4 lb. bag Volume 6+EOP 2"},null,25,null,0]
[10560410,"CHAMPION++ 4x10 Lb Case","CHAMPION++","10 lb. bag",{"$f":"CONCATENATE(C98,D98,$A$1)","v":"CHAMPION++10 lb. bagEOP 1"},{"$f":"CONCATENATE(C98,D98,$A$2)","v":"CHAMPION++10 lb. bagEOP 2"},5,null,null,3]
[10906225,"CURATOR 2x2.5 Gallon Case","CURATOR","2.5 gal. bottle",{"$f":"CONCATENATE(C99,D99,$A$1)","v":"CURATOR2.5 gal. bottleEOP 1"},{"$f":"CONCATENATE(C99,D99,$A$2)","v":"CURATOR2.5 gal. bottleEOP 2"},55,null,null,15]
[10906225,"CURATOR 2x2.5 Gallon Case","CURATOR","2.5 gal bottle Volume 4+",{"$f":"CONCATENATE(C100,D100,$A$1)","v":"CURATOR2.5 gal bottle Volume 4+EOP 1"},{"$f":"CONCATENATE(C100,D100,$A$2)","v":"CURATOR2.5 gal bottle Volume 4+EOP 2"},null,130,null,0]
[10906225,"CURATOR 2x2.5 Gallon Case","CURATOR","2.5 gal bottle Pairing 1",{"$f":"CONCATENATE(C101,D101,$A$1)","v":"CURATOR2.5 gal bottle Pairing 1EOP 1"},{"$f":"CONCATENATE(C101,D101,$A$2)","v":"CURATOR2.5 gal bottle Pairing 1EOP 2"},null,null,145,145]
[10702460,"PINPOINT 4x60 Fl oz Case","PINPOINT","60 fl oz. bottle","PINPOINT60 fl oz. bottleEOP 1","PINPOINT60 fl oz. bottleEOP 2",10,null,null,5]
[10702460,"PINPOINT 4x60 Fl oz Case","PINPOINT","60 fl oz. bottle Volume 8+",{"$f":"CONCATENATE(C103,D103,$A$1)","v":"PINPOINT60 fl oz. bottle Volume 8+EOP 1"},{"$f":"CONCATENATE(C103,D103,$A$2)","v":"PINPOINT60 fl oz. bottle Volume 8+EOP 2"},null,30,null,0]
[10501045,"SPECTRO 90 WDG 4x5 Lb Case","SPECTRO 90 WDG","5 lb. bag","SPECTRO 90 WDG5 lb. bagEOP 1","SPECTRO 90 WDG5 lb. bagEOP 2",5,null,null,2]
[10726861,"SPIRATO GHN 8x1 Pt Case","SPIRATO GHN","1 pt. bottle","SPIRATO GHN1 pt. bottleEOP 1","SPIRATO GHN1 pt. bottleEOP 2",20,null,null,5]
[10726861,"SPIRATO GHN 8x1 Pt Case","SPIRATO GHN","1 pt. bottle Volume 8+",{"$f":"CONCATENATE(C106,D106,$A$1)","v":"SPIRATO GHN1 pt. bottle Volume 8+EOP 1"},{"$f":"CONCATENATE(C106,D106,$A$2)","v":"SPIRATO GHN1 pt. bottle Volume 8+EOP 2"},null,50,null,0]
[10492051,"TORQUE 5x1 Gallon Case","TORQUE","1 gal. bottle","TORQUE1 gal. bottleEOP 1","TORQUE1 gal. bottleEOP 2",8,null,null,4]
[10854861,"TOURNEY EZ 8x1 Pt Case","TOURNEY EZ","1 pt. bottle","TOURNEY EZ1 pt. bottleEOP 1","TOURNEY EZ1 pt. bottleEOP 2",12,null,null,4]
[10854041,"TOURNEY EZ 4x1 Gallon Case","TOURNEY EZ","1 gal. bottle",{"$f":"CONCATENATE(C109,D109,$A$1)","v":"TOURNEY EZ1 gal. bottleEOP 1"},{"$f":"CONCATENATE(C109,D109,$A$2)","v":"TOURNEY EZ1 gal. bottleEOP 2"},75,null,null,30]
[10854041,"TOURNEY EZ 4x1 Gallon Case","TOURNEY EZ","1 gal. bottle Volume 4+","TOURNEY EZ1 gal. bottle Volume 4+EOP 1","TOURNEY EZ1 gal. bottle Volume 4+EOP 2",null,110,null,0]
[10854041,"TOURNEY EZ 4x1 Gallon Case","TOURNEY EZ","1 gal. bottle Pairing 1",{"$f":"CONCATENATE(C111,D111,$A$1)","v":"TOURNEY EZ1 gal. bottle Pairing 1EOP 1"},{"$f":"CONCATENATE(C111,D111,$A$2)","v":"TOURNEY EZ1 gal. bottle Pairing 1EOP 2"},null,null,140,140]
[10723225,"TRACTION 2x2.5 Gallon Case","TRACTION","2.5 gal. bottle",{"$f":"CONCATENATE(C112,D112,$A$1)","v":"TRACTION2.5 gal. bottleEOP 1"},{"$f":"CONCATENATE(C112,D112,$A$2)","v":"TRACTION2.5 gal. bottleEOP 2"},20,null,null,17]
[10723225,"TRACTION 2x2.5 Gallon Case","TRACTION","2.5 gal. bottle Volume 6+","TRACTION2.5 gal. bottle Volume 6+EOP 1","TRACTION2.5 gal. bottle Volume 6+EOP 2",null,55,null,0]
[10723225,"TRACTION 2x2.5 Gallon Case","TRACTION","2.5 gal. bottle Pairing 2",{"$f":"CONCATENATE(C114,D114,$A$1)","v":"TRACTION2.5 gal. bottle Pairing 2EOP 1"},{"$f":"CONCATENATE(C114,D114,$A$2)","v":"TRACTION2.5 gal. bottle Pairing 2EOP 2"},null,null,75,75]
[10723225,"TRACTION 2x2.5 Gallon Case","TRACTION","2.5 gal. bottle Pairing 3",{"$f":"CONCATENATE(C115,D115,$A$1)","v":"TRACTION2.5 gal. bottle Pairing 3EOP 1"},{"$f":"CONCATENATE(C115,D115,$A$2)","v":"TRACTION2.5 gal. bottle Pairing 3EOP 2"},null,null,75,75]
[10915464,"VERDATO","VERDATO","64 fl oz. bottle",{"$f":"CONCATENATE(C116,D116,$A$1)","v":"VERDATO64 fl oz. bottleEOP 1"},{"$f":"CONCATENATE(C116,D116,$A$2)","v":"VERDATO64 fl oz. bottleEOP 2"},100,null,null,30]
[10915464,"VERDATO","VERDATO","64 fl oz. bottle Volume 4+",{"$f":"CONCATENATE(C117,D117,$A$1)","v":"VERDATO64 fl oz. bottle Volume 4+EOP 1"},{"$f":"CONCATENATE(C117,D117,$A$2)","v":"VERDATO64 fl oz. bottle Volume 4+EOP 2"},null,150,null,0]
[null,"Plant Growth Regulators","Plant Growth Regulators",null,"Plant Growth RegulatorsEOP 1","Plant Growth RegulatorsEOP 2"]
[10571443,"ANUEW 4x4x1.5 Lb Case","ANUEW","1.5 lb. pack","ANUEW1.5 lb. packEOP 1","ANUEW1.5 lb. packEOP 2",8,null,null,4]
[10571443,"ANUEW 4x4x1.5 Lb Case","ANUEW","1.5 lb. pack Volume 32+",{"$f":"CONCATENATE(C120,D120,$A$1)","v":"ANUEW1.5 lb. pack Volume 32+EOP 1"},{"$f":"CONCATENATE(C120,D120,$A$2)","v":"ANUEW1.5 lb. pack Volume 32+EOP 2"},null,18,null,0]
[10571443,"ANUEW 4x4x1.5 Lb Case","ANUEW","1.5 lb. pack Pairing 1 & 2",{"$f":"CONCATENATE(C121,D121,$A$1)","v":"ANUEW1.5 lb. pack Pairing 1 & 2EOP 1"},{"$f":"CONCATENATE(C121,D121,$A$2)","v":"ANUEW1.5 lb. pack Pairing 1 & 2EOP 2"},null,null,25,25]
[10850464,"ANUEW EZ 4x64 Fl oz Case","ANUEW EZ","64 fl oz. bottle","ANUEW EZ64 fl oz. bottleEOP 1","ANUEW EZ64 fl oz. bottleEOP 2",10,null,null,5]
[10849225,"ANUEW EZ 2x2.5 Gallon Case","ANUEW EZ","2.5 gal. bottle",{"$f":"CONCATENATE(C123,D123,$A$1)","v":"ANUEW EZ2.5 gal. bottleEOP 1"},{"$f":"CONCATENATE(C123,D123,$A$2)","v":"ANUEW EZ2.5 gal. bottleEOP 2"},48,null,null,24]
[10849225,"ANUEW EZ 2x2.5 Gallon Case","ANUEW EZ","2.5 gal. bottle Volume 6+","ANUEW EZ2.5 gal. bottle Volume 6+EOP 1","ANUEW EZ2.5 gal. bottle Volume 6+EOP 2",null,125,null,0]
[10849225,"ANUEW EZ 2x2.5 Gallon Case","ANUEW EZ","2.5 gal. bottle Pairing 1 & 2",{"$f":"CONCATENATE(C125,D125,$A$1)","v":"ANUEW EZ2.5 gal. bottle Pairing 1 & 2EOP 1"},{"$f":"CONCATENATE(C125,D125,$A$2)","v":"ANUEW EZ2.5 gal. bottle Pairing 1 & 2EOP 2"},null,null,150,150]
[10590414,"FASCINATION 4x0.5 Gallon Case","FASCINATION","0.5 gal. bottle","FASCINATION0.5 gal. bottleEOP 1","FASCINATION0.5 gal. bottleEOP 2",12,null,null,4]
[10596041,"SUMAGIC 4x1 Gallon Case","SUMAGIC","1 gal. bottle","SUMAGIC1 gal. bottleEOP 1","SUMAGIC1 gal. bottleEOP 2",10,null,null,5]
[10596515,"SUMAGIC 15 Gallon Drum","SUMAGIC","15 gal. drum","SUMAGIC15 gal. drumEOP 1","SUMAGIC15 gal. drumEOP 2",150,null,null,75]
[]
[]
[]
[]
[]
[]
[]
["EOP 1 & 2"]
["Volume"]
["Pairing"]